bitfinex/quotes_BTCUSD_20220226
["timestamp","ask_amount","ask_price","bid_price","bid_amount"]
[1645839005329,0.3,39741.0,39738.0,0.00043675]
[1645839005530,0.375926,39740.0,39732.0,0.30914894]
[1645839005731,0.3,39743.0,39738.0,0.00043675]
[1645839006029,0.875926,39740.0,39738.0,0.00043675]
[1645839006231,0.675926,39739.0,39738.0,0.00043675]
[1645839006630,0.54603948,39739.0,39738.0,0.00043675]
[1645839006830,0.54603948,39739.0,39732.0,0.00174725]
[1645839007031,0.375926,39738.0,39729.0,0.02512]
[1645839007232,0.375926,39738.0,39737.0,0.00042652]
[1645839007876,0.377926,39738.0,39737.0,0.00042652]
[1645839008079,0.377926,39738.0,39731.0,0.20347676]
[1645839009279,0.375926,39738.0,39734.0,0.10288393]
[1645839009480,0.375926,39738.0,39734.0,0.05767859]
[1645839009680,0.375926,39738.0,39736.0,0.05767859]
[1645839012133,0.01189604,39734.0,39729.0,0.00076911]
[1645839012934,0.01189604,39734.0,39728.0,0.12502]
[1645839013134,0.01070644,39734.0,39728.0,0.12502]
[1645839013336,0.01070644,39734.0,39732.0,0.22665847]
[1645839013934,0.01170644,39734.0,39732.0,0.22665847]
[1645839015076,0.01070644,39734.0,39732.0,0.22665847]
[1645839015875,0.01270644,39734.0,39732.0,0.22665847]
[1645839016077,0.01270644,39734.0,39732.0,0.25177847]
[1645839016280,8.959e-05,39735.0,39734.0,0.364628]
[1645839016281,9.59e-06,39735.0,39734.0,0.364628]
[1645839016479,0.5,39740.0,39734.0,0.364628]
[1645839016875,0.17011348,39741.0,39734.0,0.02512]
[1645839016876,0.00029864,39735.0,39734.0,0.02512]
[1645839017279,0.00029864,39735.0,39734.0,0.364628]
[1645839017576,0.00019762,39735.0,39734.0,0.364628]
[1645839017776,0.3,39746.0,39745.0,0.18165629]
[1645839017980,0.3,39746.0,39730.0,0.5033]
[1645839017981,0.36061551,39743.0,39730.0,0.79944981]
[1645839018178,0.36061551,39743.0,39731.0,0.02512]
[1645839018378,0.36061551,39743.0,39729.0,0.1188]
[1645839018379,0.36061551,39743.0,39732.0,0.02512]
[1645839019031,0.36061551,39743.0,39741.0,0.2083115]
[1645839019528,0.33061551,39743.0,39741.0,0.2083115]
[1645839019926,0.33361551,39743.0,39741.0,0.2083115]
[1645839020532,0.33361551,39743.0,39742.0,0.364546]
[1645839020729,0.19691551,39743.0,39742.0,0.364546]
[1645839021130,0.19391551,39743.0,39742.0,0.364546]
[1645839021530,0.56984151,39743.0,39742.0,0.02512]
[1645839021731,0.19391551,39743.0,39742.0,0.02512]
[1645839021929,0.19491551,39743.0,39742.0,0.02512]
[1645839022786,0.19491551,39743.0,39741.0,0.2334315]
[1645839023285,0.19391551,39743.0,39741.0,0.2334315]
[1645839023481,0.19391551,39743.0,39741.0,0.2083115]
[1645839023982,0.19491551,39743.0,39741.0,0.2083115]
[1645839024784,0.19491551,39743.0,39741.0,0.2334315]
[1645839024982,0.19491551,39743.0,39742.0,0.364546]
[1645839025384,5.05e-06,39744.0,39743.0,0.12511449]
[1645839025584,5.05e-06,39744.0,39743.0,0.46452949]
[1645839025983,5.05e-06,39744.0,39743.0,0.51282949]
[1645839026183,0.3,39760.0,39743.0,0.51282949]
[1645839026430,0.51005,39761.0,39752.0,0.17218753]
[1645839026630,0.675926,39760.0,39752.0,0.17218753]
[1645839026829,0.84603948,39760.0,39752.0,0.17218753]
[1645839027033,0.375926,39758.0,39752.0,0.17218753]
[1645839027232,0.375926,39758.0,39745.0,0.3135]
[1645839027531,0.1,39762.0,39745.0,0.3135]
[1645839027731,0.3,39761.0,39745.0,0.33862]
[1645839028334,0.375926,39760.0,39753.0,0.23309558]
[1645839029030,0.3,39761.0,39753.0,0.23309558]
[1645839029232,0.375926,39762.0,39753.0,0.23309558]
[1645839029430,0.3,39763.0,39753.0,0.23309558]
[1645839029631,0.375926,39762.0,39753.0,0.23309558]
[1645839029930,0.00035417,39759.0,39753.0,0.23309558]
[1645839030991,0.375926,39761.0,39759.0,0.23889253]
[1645839031585,0.01005,39764.0,39759.0,0.23889253]
[1645839031787,0.375926,39763.0,39759.0,0.23889253]
[1645839031987,0.01005,39764.0,39745.0,0.70976434]
[1645839032187,0.01005,39764.0,39745.0,0.33862]
[1645839032386,0.10035417,39763.0,39745.0,0.33862]
[1645839032586,0.00035417,39763.0,39745.0,0.84192]
[1645839032787,0.00035417,39763.0,39745.0,1.21306434]
[1645839032987,0.375926,39762.0,39758.0,0.22561963]
[1645839033389,0.17011348,39765.0,39759.0,0.3]
[1645839033593,0.1,39768.0,39758.0,0.22561963]
[1645839033830,0.1,39768.0,39759.0,0.3]
[1645839034031,0.15,39768.0,39759.0,0.3]
[1645839034231,0.1,39768.0,39765.0,0.17181257]
[1645839034436,0.002,39770.0,39765.0,0.17181257]
[1645839035233,0.001,39774.0,39765.0,0.17181257]
[1645839035433,0.375926,39773.0,39765.0,0.17181257]
[1645839035632,0.425926,39773.0,39759.0,0.3]
[1645839035832,0.05,39773.0,39758.0,0.1216]
[1645839036034,0.05,39773.0,39760.0,0.001]
[1645839036035,0.00010644,39771.0,39760.0,0.001]
[1645839037034,0.06104,39773.0,39760.0,0.001]
[1645839037237,0.06004,39773.0,39758.0,0.64200017]
[1645839037434,0.11004,39773.0,39758.0,0.64200017]
[1645839037683,0.11004,39773.0,39758.0,0.34200017]
[1645839037880,0.01004,39773.0,39758.0,0.34200017]
[1645839038179,0.11004,39773.0,39758.0,0.34200017]
[1645839038381,0.00035459,39767.0,39758.0,0.34200017]
[1645839038580,0.00035459,39767.0,39764.0,0.1889302]
[1645839039379,0.375926,39773.0,39764.0,0.1889302]
[1645839039579,0.00035459,39767.0,39764.0,0.1889302]
[1645839040283,0.00035459,39767.0,39765.0,0.3]
[1645839040482,0.001,39774.0,39765.0,0.66431]
[1645839040679,0.001,39774.0,39765.0,0.32512]
[1645839040881,0.00035459,39767.0,39765.0,0.3]
[1645839041081,0.00035459,39767.0,39766.0,0.339175]
[1645839041738,0.001,39774.0,39766.0,0.339175]
[1645839042037,0.001,39774.0,39770.0,0.21691995]
[1645839043233,0.00135459,39774.0,39770.0,0.21691995]
[1645839043438,0.00135459,39774.0,39771.0,0.3]
[1645839043738,4.59e-06,39774.0,39773.0,0.02512]
[1645839043938,4.59e-06,39774.0,39773.0,0.410528]
[1645839044136,0.0033,39776.0,39773.0,0.710528]
[1645839045183,0.0033,39776.0,39773.0,0.685408]
[1645839045385,0.0033,39776.0,39773.0,0.0463]
[1645839045583,0.0033,39776.0,39774.0,0.339098]
[1645839045784,0.0033,39776.0,39773.0,0.0463]
[1645839045988,0.00303047,39776.0,39773.0,0.0463]
[1645839046988,0.00303047,39776.0,39774.0,0.339098]
[1645839047189,0.00303047,39776.0,39775.0,0.3]
[1645839047388,0.00303047,39776.0,39775.0,0.364208]
[1645839049532,0.00303047,39776.0,39773.0,0.07142]
[1645839049533,0.02228327,39774.0,39773.0,0.07142]
[1645839049733,0.02228327,39774.0,39773.0,0.26135515]
[1645839049933,0.02228327,39774.0,39773.0,0.56135515]
[1645839050732,0.02228327,39774.0,39773.0,0.26135515]
[1645839051135,0.02228327,39774.0,39773.0,0.2306007]
[1645839051435,0.02228327,39774.0,39773.0,0.5306007]
[1645839051639,0.02228327,39774.0,39773.0,0.20090747]
[1645839052436,0.02228327,39774.0,39773.0,0.17578747]
[1645839052885,0.02228327,39774.0,39773.0,0.52208747]
[1645839053089,0.02228327,39774.0,39773.0,0.22208747]
[1645839053485,0.02228327,39774.0,39773.0,0.54720747]
[1645839054694,0.02512,39772.0,39769.0,0.00802143]
[1645839054889,0.1463,39771.0,39770.0,0.69243]
[1645839055089,1.47476212,39769.0,39756.0,0.56861578]
[1645839055290,1.47476212,39769.0,39750.0,0.0079]
[1645839055291,0.1,39757.0,39750.0,0.0079]
[1645839055489,0.1,39766.0,39750.0,0.0079]
[1645839055490,0.02512,39759.0,39750.0,0.0079]
[1645839055789,0.1,39755.0,39750.0,0.00966261]
[1645839055988,0.1,39759.0,39750.0,0.00176261]
[1645839056188,0.1,39759.0,39750.0,0.00276261]
[1645839056453,0.1,39759.0,39750.0,0.001]
[1645839056653,0.1,39759.0,39751.0,0.20201789]
[1645839057454,0.3,39765.0,39751.0,0.20201789]
[1645839057653,0.1,39762.0,39751.0,0.20201789]
[1645839058154,0.1,39763.0,39751.0,0.20201789]
[1645839059360,0.01005,39762.0,39751.0,0.20201789]
[1645839059560,1.09826212,39769.0,39751.0,0.55201789]
[1645839060089,0.80896212,39769.0,39751.0,0.42813789]
[1645839060284,0.80896212,39769.0,39751.0,0.57813789]
[1645839060482,0.80896212,39769.0,39761.0,0.20389916]
[1645839060883,0.70896212,39769.0,39761.0,0.20389916]
[1645839062094,0.70896212,39769.0,39761.0,0.20489916]
[1645839063186,0.75896212,39769.0,39761.0,0.001]
[1645839063388,0.75896212,39769.0,39746.0,0.0999]
[1645839063389,0.12512,39762.0,39746.0,0.0999]
[1645839063589,0.1,39760.0,39746.0,0.0999]
[1645839063841,0.3,39764.0,39746.0,0.0999]
[1645839064137,0.3,39764.0,39744.0,0.19938318]
[1645839064338,0.3,39764.0,39754.0,0.19280235]
[1645839064542,0.2991042,39764.0,39754.0,0.19280235]
[1645839064738,0.1,39763.0,39754.0,0.19280235]
[1645839065537,0.3,39767.0,39754.0,0.19280235]
[1645839065538,0.1,39761.0,39754.0,0.19280235]
[1645839066738,0.3,39767.0,39754.0,0.19280235]
[1645839066739,0.02512,39766.0,39754.0,0.19280235]
[1645839066938,0.1,39763.0,39754.0,0.19280235]
[1645839067142,0.1,39764.0,39754.0,0.19280235]
[1645839067338,0.02512,39766.0,39754.0,0.19280235]
[1645839067979,0.3,39767.0,39754.0,0.19280235]
[1645839068178,0.1,39761.0,39754.0,0.19280235]
[1645839069383,0.00035817,39762.0,39754.0,0.19280235]
[1645839069580,0.1,39764.0,39754.0,0.19280235]
[1645839069785,0.00035817,39759.0,39754.0,0.19280235]
[1645839070782,0.001,39762.0,39754.0,0.19280235]
[1645839070982,0.00035817,39758.0,39754.0,0.19280235]
[1645839072033,0.1,39759.0,39747.0,0.0687]
[1645839072233,0.00035817,39758.0,39747.0,0.06817335]
[1645839072440,0.30035817,39758.0,39747.0,0.0681]
[1645839072632,0.02512,39757.0,39747.0,0.0681]
[1645839072839,0.1,39748.0,39747.0,0.0681]
[1645839073034,0.1,39748.0,39738.0,0.00176513]
[1645839073035,0.375867,39748.0,39746.0,0.21471381]
[1645839073233,0.375867,39747.0,39746.0,0.21471381]
[1645839073434,0.1,39748.0,39738.0,0.11816513]
[1645839073636,0.00030038,39754.0,39746.0,0.00039559]
[1645839073834,0.475867,39747.0,39746.0,0.00039559]
[1645839074037,0.1,39747.0,39746.0,0.00039559]
[1645839074437,0.1,39747.0,39739.0,0.23377612]
[1645839074638,0.1,39747.0,39745.0,0.00039559]
[1645839075085,0.00030036,39751.0,39745.0,0.00039559]
[1645839075286,0.375867,39750.0,39745.0,0.00039559]
[1645839075682,0.375867,39750.0,39743.0,0.0999]
[1645839075882,0.32512,39755.0,39743.0,0.0999]
[1645839075883,0.1,39747.0,39746.0,0.00039558]
[1645839076885,0.1,39747.0,39743.0,0.0999]
[1645839077085,0.1,39747.0,39745.0,0.00039559]
[1645839077486,0.1,39748.0,39745.0,0.00039559]
[1645839077789,0.375867,39750.0,39745.0,0.00039559]
[1645839077985,0.375867,39750.0,39743.0,0.0999]
[1645839078187,0.002,39748.0,39745.0,0.00039319]
[1645839078486,0.102,39748.0,39745.0,0.00039319]
[1645839078686,0.002,39748.0,39745.0,0.00039319]
[1645839078939,0.1,39746.0,39745.0,0.00039319]
[1645839079139,0.1,39746.0,39743.0,0.0999]
[1645839079339,0.1,39746.0,39745.0,0.00039319]
[1645839079742,0.475867,39746.0,39745.0,0.00039319]
[1645839079943,0.775867,39746.0,39745.0,0.00039319]
[1645839080142,0.00078638,39744.0,39737.0,0.00157307]
[1645839080346,0.1,39740.0,39737.0,0.00157307]
[1645839080542,0.00078638,39744.0,39735.0,0.0999]
[1645839080543,0.10078638,39744.0,39735.0,0.0999]
[1645839080742,0.3,39743.0,39735.0,0.0999]
[1645839081141,0.10078638,39744.0,39741.0,0.18819764]
[1645839081343,0.00078638,39744.0,39741.0,0.18819764]
[1645839081743,0.00078638,39744.0,39741.0,0.18853106]
[1645839082786,0.00078638,39744.0,39741.0,0.18819764]
[1645839083184,0.00078638,39744.0,39741.0,0.18863886]
[1645839083985,0.00078638,39744.0,39741.0,0.18819764]
[1645839084186,0.00078638,39744.0,39741.0,0.18863886]
[1645839085186,0.00078638,39744.0,39741.0,0.18819764]
[1645839085386,0.00078638,39744.0,39741.0,0.18863886]
[1645839086188,0.00178638,39744.0,39741.0,0.18863886]
[1645839086435,0.00178638,39744.0,39741.0,0.18819764]
[1645839086634,0.00178638,39744.0,39741.0,0.18851707]
[1645839087434,0.00040578,39744.0,39741.0,0.18851707]
[1645839087635,0.00040578,39744.0,39741.0,0.18819764]
[1645839087834,0.00040578,39744.0,39741.0,0.18861961]
[1645839088239,0.00140578,39744.0,39741.0,0.18861961]
[1645839088838,0.00140578,39744.0,39741.0,0.18819764]
[1645839089037,0.00140578,39744.0,39741.0,0.18861961]
[1645839089539,0.00040578,39744.0,39741.0,0.18861961]
[1645839089938,0.00040578,39744.0,39741.0,0.18361961]
[1645839090187,0.00140578,39744.0,39741.0,0.18319764]
[1645839090390,0.00140578,39744.0,39741.0,0.18363345]
[1645839090794,0.00140578,39744.0,39741.0,0.00043581]
[1645839091188,0.00140578,39744.0,39736.0,0.001]
[1645839091391,0.00040578,39744.0,39741.0,0.00043592]
[1645839091589,0.10040578,39744.0,39741.0,0.00043592]
[1645839091788,0.12552578,39744.0,39741.0,0.00043592]
[1645839092190,0.12652578,39744.0,39741.0,0.00043592]
[1645839092389,0.02652578,39744.0,39736.0,0.17191105]
[1645839092589,0.10140578,39744.0,39741.0,0.00043592]
[1645839093392,0.00040578,39744.0,39741.0,0.00043592]
[1645839093591,0.10040578,39744.0,39736.0,0.16991105]
[1645839093844,0.10040578,39744.0,39741.0,0.00042208]
[1645839094840,0.10040578,39744.0,39736.0,0.16991105]
[1645839095041,0.10040578,39744.0,39741.0,0.00042752]
[1645839096045,0.10040578,39744.0,39736.0,0.16991105]
[1645839096242,0.10040578,39744.0,39741.0,0.00142752]
[1645839096843,0.400987,39743.0,39741.0,0.00142752]
[1645839097043,0.1,39742.0,39741.0,0.00142752]
[1645839097244,0.1,39742.0,39741.0,0.001]
[1645839097443,0.1,39742.0,39736.0,0.16991105]
[1645839097685,0.1,39742.0,39740.0,0.00044136]
[1645839097988,0.02512,39743.0,39740.0,0.00044136]
[1645839098185,0.00040578,39744.0,39740.0,0.00044136]
[1645839098386,0.00040578,39744.0,39736.0,0.16991105]
[1645839098589,0.00040578,39744.0,39740.0,0.00043816]
[1645839099587,0.00040578,39744.0,39736.0,0.16991105]
[1645839099787,0.00040578,39744.0,39740.0,0.00043815]
[1645839100487,0.02552578,39744.0,39740.0,0.00043815]
[1645839100889,0.12552578,39744.0,39736.0,0.16991105]
[1645839101093,0.00040578,39744.0,39740.0,0.00043815]
[1645839101336,0.00040578,39744.0,39742.0,0.19821191]
[1645839104038,0.02512,39743.0,39741.0,0.00044135]
[1645839104237,0.1,39742.0,39741.0,0.00044135]
[1645839104436,0.1,39742.0,39735.0,0.0999]
[1645839104637,0.02512,39743.0,39740.0,0.00043367]
[1645839104837,0.1,39741.0,39740.0,0.00043367]
[1645839105685,0.1,39741.0,39735.0,0.0999]
[1645839105884,0.1,39741.0,39739.0,0.00043369]
[1645839106289,0.101,39741.0,39739.0,0.00043369]
[1645839106987,0.101,39741.0,39735.0,0.18721485]
[1645839107186,0.101,39741.0,39738.0,0.00043369]
[1645839107387,0.375867,39740.0,39738.0,0.00043369]
[1645839107788,0.1,39741.0,39738.0,0.00043369]
[1645839107985,0.375867,39740.0,39738.0,0.00043369]
[1645839108185,0.001,39740.0,39737.0,0.00041366]
[1645839109336,0.001,39740.0,39732.0,0.21914513]
[1645839109635,0.400987,39740.0,39737.0,0.00041366]
[1645839109833,0.02512,39740.0,39737.0,0.00041366]
[1645839110238,0.001,39740.0,39737.0,0.00041366]
[1645839110434,0.001,39740.0,39732.0,0.22014513]
[1645839110635,0.001,39740.0,39737.0,0.00041366]
[1645839111240,0.12512,39738.0,39737.0,0.00041366]
[1645839111446,0.800987,39738.0,39737.0,0.00041366]
[1645839111638,0.800987,39738.0,39732.0,0.001]
[1645839111840,0.1,39734.0,39732.0,0.001]
[1645839112037,0.32512,39738.0,39730.0,0.04118958]
[1645839112038,0.375867,39733.0,39730.0,0.04118958]
[1645839112238,0.02512,39738.0,39730.0,0.04118958]
[1645839112239,0.1,39735.0,39730.0,0.04118958]
[1645839112439,0.32612,39738.0,39730.0,0.04118958]
[1645839112684,0.1,39732.0,39730.0,0.04118958]
[1645839112883,0.400987,39737.0,39730.0,0.03942372]
[1645839112884,0.375867,39735.0,39730.0,0.03942372]
[1645839113084,0.475867,39735.0,39732.0,0.000429]
[1645839114087,0.375867,39735.0,39730.0,0.03942372]
[1645839114485,0.375867,39735.0,39732.0,0.000429]
[1645839115386,0.375867,39734.0,39730.0,0.03942372]
[1645839115586,0.1,39737.0,39732.0,0.00041547]
[1645839115786,0.475867,39736.0,39732.0,0.00041547]
[1645839116185,0.375867,39736.0,39732.0,0.00041547]
[1645839116437,0.375867,39736.0,39730.0,0.03942372]
[1645839116438,0.375867,39734.0,39730.0,0.03942372]
[1645839116637,0.375867,39735.0,39730.0,0.03942372]
[1645839116834,0.1,39733.0,39732.0,0.00041263]
[1645839117032,0.475867,39733.0,39732.0,0.00041263]
[1645839117833,0.1,39733.0,39730.0,0.03942372]
[1645839118034,0.375867,39732.0,39731.0,0.00041264]
[1645839118835,0.375867,39736.0,39730.0,0.03942372]
[1645839119239,0.375867,39736.0,39733.0,0.21345706]
[1645839119835,0.475867,39736.0,39733.0,0.21345706]
[1645839120287,0.376867,39736.0,39733.0,0.21389121]
[1645839120586,0.12512,39735.0,39733.0,0.00043415]
[1645839120786,0.375867,39734.0,39733.0,0.00043415]
[1645839121389,0.675867,39734.0,39730.0,0.03942372]
[1645839121588,0.1,39733.0,39732.0,0.00043416]
[1645839121792,0.800987,39733.0,39732.0,0.00043416]
[1645839121987,0.00086831,39731.0,39730.0,0.03942372]
[1645839122186,0.47673531,39731.0,39730.0,0.03942372]
[1645839122688,0.80185531,39731.0,39730.0,0.03942372]
[1645839123091,0.85185531,39731.0,39730.0,0.03942372]
[1645839125141,0.91190531,39731.0,39730.0,0.03942372]
[1645839125939,1.67770531,39731.0,39730.0,0.03942372]
[1645839126541,1.72400531,39731.0,39730.0,0.03942372]
[1645839126943,0.95820531,39731.0,39730.0,0.03942372]
[1645839128492,1.72600531,39731.0,39730.0,0.03942372]
[1645839128692,0.96020531,39731.0,39730.0,0.03942372]
[1645839129295,0.10286831,39731.0,39730.0,0.03942372]
[1645839129502,0.00086831,39731.0,39730.0,0.03942372]
[1645839130395,0.00086831,39731.0,39730.0,0.22500845]
[1645839131195,0.00086831,39731.0,39730.0,0.22456075]
[1645839132040,0.00086831,39731.0,39730.0,0.03897602]
[1645839132241,0.37773531,39731.0,39730.0,0.03800887]
[1645839132641,0.00186831,39731.0,39730.0,0.03800887]
[1645839133040,0.00186831,39731.0,39730.0,0.2148226]
[1645839134040,0.00086831,39731.0,39730.0,0.2148226]
[1645839136189,0.00086831,39731.0,39730.0,0.2158226]
[1645839137490,0.00086831,39731.0,39730.0,0.2148226]
[1645839138391,0.00086831,39731.0,39730.0,0.2188226]
[1645839139441,0.00086831,39731.0,39730.0,0.2148226]
[1645839140141,8.31e-06,39731.0,39730.0,0.10942887]
[1645839140339,8.31e-06,39731.0,39730.0,0.11242887]
[1645839140741,8.31e-06,39731.0,39730.0,0.21242887]
[1645839141441,8.31e-06,39731.0,39730.0,0.20942887]
[1645839141838,8.31e-06,39731.0,39730.0,0.27235487]
[1645839142339,8.31e-06,39731.0,39730.0,1.03815487]
[1645839142594,8.31e-06,39731.0,39730.0,0.27235487]
[1645839143695,8.31e-06,39731.0,39730.0,1.03815487]
[1645839144294,8.31e-06,39731.0,39730.0,0.28615487]
[1645839144693,8.31e-06,39731.0,39730.0,1.03124487]
[1645839145795,8.31e-06,39731.0,39730.0,1.02524487]
[1645839148140,8.31e-06,39731.0,39730.0,0.987236]
[1645839149944,8.31e-06,39731.0,39730.0,0.977236]
[1645839150185,8.31e-06,39731.0,39730.0,0.9767887]
[1645839152885,8.31e-06,39731.0,39730.0,1.7425887]
[1645839153691,8.31e-06,39731.0,39730.0,1.9924887]
[1645839153946,0.00035084,39745.0,39730.0,1.9924887]
[1645839153947,0.31005,39756.0,39740.0,0.7658]
[1645839154147,0.41225418,39763.0,39741.0,0.95812]
[1645839154148,1.7e-06,39745.0,39741.0,0.95812]
[1645839154344,1.7e-06,39745.0,39743.0,0.02512]
[1645839154544,1.7e-06,39745.0,39744.0,0.82625]
[1645839154746,1.7e-06,39745.0,39744.0,0.87625]
[1645839155147,0.1,39760.0,39758.0,0.20123248]
[1645839155347,0.36601792,39755.0,39753.0,0.17015267]
[1645839155951,0.36601792,39755.0,39754.0,0.0463]
[1645839164340,0.36601792,39755.0,39754.0,0.0513]
[1645839165592,0.36601792,39755.0,39754.0,0.0463]
[1645839166393,0.36601792,39755.0,39754.0,0.0483]
[1645839166992,0.36601792,39755.0,39754.0,0.3483]
[1645839167191,0.36601792,39755.0,39754.0,0.0483]
[1645839167591,0.36601792,39755.0,39754.0,0.0463]
[1645839168394,0.36601792,39755.0,39754.0,0.0493]
[1645839169660,0.36601792,39755.0,39754.0,0.0463]
[1645839172460,0.36601792,39755.0,39754.0,0.0473]
[1645839173585,0.36601792,39755.0,39754.0,0.0463]
[1645839178356,0.36601792,39755.0,39754.0,0.0493]
[1645839178660,0.00036091,39756.0,39755.0,0.85]
[1645839178856,9.1e-07,39756.0,39755.0,1.1963]
[1645839179055,9.1e-07,39756.0,39755.0,1.74536]
[1645839179455,0.00036091,39757.0,39755.0,1.74536]
[1645839180093,0.00036091,39757.0,39756.0,0.19669733]
[1645839180298,0.1011,39771.0,39756.0,1.1009]
[1645839180495,0.00029999,39758.0,39756.0,1.1009]
[1645839180694,0.00029999,39758.0,39756.0,0.8009]
[1645839180894,0.00029999,39758.0,39756.0,1.1009]
[1645839181294,0.00029999,39758.0,39757.0,0.23660585]
[1645839181494,0.1011,39771.0,39766.0,0.23361553]
[1645839182494,0.1011,39771.0,39766.0,0.23461553]
[1645839183599,0.1011,39771.0,39766.0,0.001]
[1645839184045,0.1011,39771.0,39761.0,0.0463]
[1645839184247,0.00035911,39770.0,39761.0,0.0463]
[1645839184549,0.00035911,39770.0,39761.0,0.0473]
[1645839184743,0.00035911,39770.0,39761.0,0.26240855]
[1645839185146,0.1011,39771.0,39761.0,0.26240855]
[1645839185344,0.0001085,39767.0,39761.0,0.26240855]
[1645839186245,0.1011,39771.0,39761.0,0.26140855]
[1645839186443,0.0001085,39766.0,39762.0,0.3]
[1645839186643,0.0001085,39766.0,39761.0,0.26340855]
[1645839187345,0.0001085,39766.0,39762.0,0.3]
[1645839187594,0.1011,39771.0,39762.0,0.3]
[1645839187796,0.0001085,39765.0,39762.0,0.3]
[1645839187996,0.0001085,39765.0,39761.0,0.26140855]
[1645839188495,0.0001085,39765.0,39762.0,0.302]
[1645839188697,0.1011,39771.0,39762.0,0.302]
[1645839188895,0.00035911,39765.0,39762.0,0.302]
[1645839189096,0.00035911,39765.0,39762.0,0.002]
[1645839189698,0.00035911,39765.0,39761.0,0.26140855]
[1645839189896,0.1011,39771.0,39769.0,0.18299299]
[1645839190095,0.1011,39771.0,39762.0,0.3]
[1645839190096,0.00035911,39765.0,39763.0,0.18197799]
[1645839190296,0.00035911,39765.0,39763.0,0.22827799]
[1645839191095,0.36598597,39766.0,39763.0,0.22827799]
[1645839191339,0.36634508,39766.0,39763.0,0.22827799]
[1645839192142,0.36634508,39766.0,39763.0,0.22731151]
[1645839192346,0.36598597,39766.0,39763.0,0.22731151]
[1645839192641,0.36634508,39766.0,39763.0,0.22731151]
[1645839193443,0.36598597,39766.0,39763.0,0.22731151]
[1645839193643,0.36634508,39766.0,39763.0,0.22731151]
[1645839194648,0.36598597,39766.0,39763.0,0.22731151]
[1645839194849,0.36634508,39766.0,39763.0,0.22731151]
[1645839195894,0.36598597,39766.0,39763.0,0.22731151]
[1645839196092,0.36634508,39766.0,39763.0,0.27731151]
[1645839196293,0.36634508,39766.0,39764.0,0.3]
[1645839196493,0.36634508,39766.0,39765.0,0.0463]
[1645839196698,0.0011,39771.0,39766.0,0.95]
[1645839196896,0.0011,39771.0,39767.0,0.3463]
[1645839197193,0.0011,39771.0,39768.0,0.80438]
[1645839197397,0.0011,39771.0,39769.0,0.0541]
[1645839197594,0.0011,39771.0,39770.0,0.75434]
[1645839197793,0.0011,39771.0,39770.0,0.85064]
[1645839198845,0.0011,39771.0,39770.0,1.15064]
[1645839200449,0.0011,39771.0,39770.0,1.17876]
[1645839200647,0.0011,39771.0,39770.0,1.15364]
[1645839201648,0.0011,39771.0,39770.0,1.15064]
[1645839202593,0.0011,39771.0,39770.0,1.15364]
[1645839203891,0.0011,39771.0,39770.0,1.15064]
[1645839204493,0.0011,39771.0,39770.0,1.15364]
[1645839205693,0.0011,39771.0,39770.0,1.15064]
[1645839206765,0.0011,39771.0,39770.0,1.91644]
[1645839206965,0.0011,39771.0,39770.0,1.15064]
[1645839208467,0.0011,39771.0,39770.0,1.15364]
[1645839209767,0.0011,39771.0,39770.0,1.15064]
[1645839210220,8.6e-06,39772.0,39771.0,0.7658]
[1645839210513,0.0011,39773.0,39771.0,1.86642]
[1645839210712,0.0011,39773.0,39772.0,1.0658]
[1645839210911,0.0011,39773.0,39772.0,1.1121]
[1645839211114,0.0011,39773.0,39772.0,1.13722]
[1645839211316,0.0011,39773.0,39772.0,1.89152]
[1645839212214,0.0011,39777.0,39772.0,1.89152]
[1645839212215,0.0011,39786.0,39773.0,0.9415]
[1645839212414,0.0011,39786.0,39776.0,0.7736]
[1645839212612,0.0011,39786.0,39778.0,0.7658]
[1645839212815,0.0011,39786.0,39778.0,1.10049]
[1645839213013,0.0011,39786.0,39778.0,0.80049]
[1645839213414,0.1022,39785.0,39778.0,0.80049]
[1645839214043,0.0019,39785.0,39779.0,0.85]
[1645839214244,0.0019,39785.0,39780.0,0.75415]
[1645839214642,0.1,39784.0,39780.0,0.75415]
[1645839214845,0.0019,39785.0,39780.0,0.75415]
[1645839215243,0.1,39783.0,39780.0,0.75415]
[1645839215448,0.00035881,39784.0,39780.0,0.75415]
[1645839215643,0.1,39783.0,39780.0,0.75415]
[1645839215844,0.00035881,39784.0,39780.0,0.75415]
[1645839216042,0.1,39782.0,39780.0,0.75415]
[1645839216442,0.1,39782.0,39780.0,0.75615]
[1645839216844,0.12512,39782.0,39780.0,0.75615]
[1645839217043,0.400987,39781.0,39780.0,0.75615]
[1645839217596,0.02512,39781.0,39780.0,0.75615]
[1645839217797,0.02512,39781.0,39780.0,0.75415]
[1645839218596,0.02612,39781.0,39780.0,0.75415]
[1645839219698,0.02512,39781.0,39780.0,0.75415]
[1645839220099,0.400987,39781.0,39780.0,0.75415]
[1645839220301,0.400987,39781.0,39780.0,0.18715384]
[1645839220504,0.02512,39781.0,39780.0,0.18715384]
[1645839222549,0.02612,39781.0,39780.0,0.18715384]
[1645839223850,0.02512,39781.0,39780.0,0.18715384]
[1645839228097,0.10031077,39782.0,39780.0,0.18715384]
[1645839228498,0.1,39782.0,39780.0,0.18815384]
[1645839228857,0.10031077,39782.0,39780.0,0.18815384]
[1645839229058,0.10031077,39782.0,39781.0,0.21557007]
[1645839229258,0.10031077,39782.0,39780.0,0.18815384]
[1645839229658,0.1,39782.0,39780.0,0.18815384]
[1645839229858,0.1,39782.0,39780.0,0.18715384]
[1645839230658,0.101,39782.0,39780.0,0.18715384]
[1645839231264,0.22612,39782.0,39780.0,0.18715384]
[1645839231860,0.22512,39782.0,39780.0,0.18715384]
[1645839232696,0.12512,39782.0,39780.0,0.18715384]
[1645839234298,0.12453,39782.0,39780.0,0.18715384]
[1645839235198,0.09941,39781.0,39780.0,0.18715384]
[1645839237548,0.09941,39781.0,39780.0,0.41292098]
[1645839238554,0.10041,39781.0,39780.0,0.41292098]
[1645839238949,0.10041,39781.0,39780.0,0.18715384]
[1645839239753,0.09941,39781.0,39780.0,0.18715384]
[1645839239951,0.09941,39781.0,39780.0,0.40338596]
[1645839240401,0.09941,39783.0,39780.0,0.40338596]
[1645839240600,0.09941,39783.0,39780.0,0.40438596]
[1645839240601,0.0003075,39782.0,39780.0,0.40438596]